[Event "Magistral Osasco 60 Anos 2022"]
[Site "Sao Paolo"]
[Date "2022.02.19"]
[Round "1.1"]
[White "Rodi, Luis Ernesto"]
[Black "Stamenkovic, Dragan"]
[Result "1/2-1/2"]
[ECO "B30"]
[WhiteElo "2347"]
[BlackElo "2378"]
[Annotator "NA"]
[PlyCount "77"]
[EventDate "2022.02.19"]
[EventType "tourn"]
[EventCountry "BRA"]
[SourceTitle "playchess.com"]
[Source "ChessBase"]
[SourceQuality "1"]
[TimeControl "40/5400+30:1800+30"]

1. e4 {[%emt 1:31:00]} c5 {[%emt 1:31:00]} 2. Nc3 {[%emt 0:00:30]} Nc6 {[%emt 0:00:00]} 3. Bb5 {[%emt 0:00:30]} Nd4 {[%emt 0:00:00]} 4. Nf3 {[%emt 0:00:30]} e6 {[%emt 0:00:00]} 5. O-O {[%emt 0:00:30]} a6 {[%emt 0:02:00]} 6. Bd3 {[%emt 0:00:00]} Nc6 {[%emt 0:00:00]} 7. Nd5 {[%emt 0:00:00]} g6 {[%emt 0:00:00]} 8. Re1 {[%emt 0:00:00]} Bg7 {[%emt 0:00:00]} 9. c3 {[%emt 0:02:00]} d6 {[%emt 0:02:00]} 10. Ne3 {[%emt 0:00:00]} Nge7 {[%emt 0:00:00]} 11. Bc2 {[%emt 0:00:00]} e5 {[%emt 0:01:00]} 12. b3 {[%emt 0:00:00]} O-O {[%emt 0:00:00]} 13. Bb2 {[%emt 0:02:00]} f5 {[%emt 0:01:00]} 14. exf5 {[%emt 0:00:30]} gxf5 {[%emt 0:00:30]} 15. d4 {[%emt 0:00:00]} cxd4 {[%emt 0:00:00]} 16. cxd4 {[%emt 0:00:00]} e4 {[%emt 0:01:00]} 17. Nh4 {[%emt 0:01:30]} d5 {[%emt 0:00:00]} 18. g3 {[%emt 0:00:30]} Qb6 {[%emt 0:00:00]} 19. Qh5 {[%emt 0:00:00]} Be6 {[%emt 0:00:00]} 20. Rad1 {[%emt 0:00:00]} Rf7 {[%emt 0:02:00]} 21. Qg5 {[%emt 0:00:00]} Kh8 {[%emt 0:00:30]} 22. Ba3 {[%emt 0:00:00]} Rg8 {[%emt 0:00:00]} 23. Bc5 {[%emt 0:00:00]} Qc7 {[%emt 0:00:00]} 24. Qh5 {[%emt 0:00:00]} f4 {[%emt 0:00:34]} 25. Nxd5 {[%emt 0:00:00]} Bxd5 {[%emt 0:00:29]} 26. Bxe4 {[%emt 0:00:00]} Bxe4 {[%emt 0:00:23]} 27. Rxe4 {[%emt 0:00:00]} Rf6 {[%emt 0:00:53]} 28. d5 {[%emt 0:00:00]} Rh6 {[%emt 0:01:11]} 29. Qe2 {[%emt 0:00:00]} Ne5 {[%emt 0:00:30]} 30. Bxe7 {[%emt 0:00:00]} Qxe7 {[%emt 0:00:00]} 31. Nf5 {[%emt 0:00:00]} f3 {[%emt 0:00:12]} 32. Qe1 {[%emt 0:01:25]} Qf6 {[%emt 0:01:18]} 33. Nxh6 {[%emt 0:00:08]} Qxh6 {[%emt 0:00:30]} 34. h4 {[%emt 0:03:04]} Qd6 {[%emt 0:00:00]} 35. Qe3 {[%emt 0:00:37]} Rf8 {[%emt 0:00:23]} 36. Qg5 {[%emt 0:01:26]} Bf6 {[%emt 0:00:33]} 37. Qh5 {[%emt 0:00:17]} Bg7 {[%emt 0:00:28]} 38. Qg5 {[%emt 0:00:24]} Bf6 {[%emt 0:00:26]} 39. Qh5 {[%emt 0:00:05]} 1/2-1/2

[Event "Magistral Osasco 60 Anos 2022"]
[Site "Sao Paolo"]
[Date "2022.02.19"]
[Round "1.2"]
[White "Di Berardino, Diego Rafael"]
[Black "Cubas, Jose Fernando"]
[Result "1-0"]
[ECO "D17"]
[WhiteElo "2483"]
[BlackElo "2469"]
[Annotator "ChessBase"]
[PlyCount "41"]
[EventDate "2022.02.19"]
[EventType "tourn"]
[EventCountry "BRA"]
[SourceTitle "playchess.com"]
[Source "ChessBase"]
[SourceQuality "1"]
[TimeControl "40/5400+30:1800+30"]

1. d4 {[%emt 0:00:09]} d5 {[%emt 0:00:36]} 2. c4 {[%emt 0:00:09]} c6 {[%emt 0:00:11]} 3. Nf3 {[%emt 0:00:36]} Nf6 {[%emt 0:00:08]} 4. Nc3 {[%emt 0:00:39]} dxc4 {[%emt 0:02:19]} 5. a4 {[%emt 0:00:11]} Bf5 {[%emt 0:00:17]} 6. Ne5 {[%emt 0:01:01]} Nbd7 {[%emt 0:00:36]} 7. Nxc4 {[%emt 0:00:14]} Nb6 {[%emt 0:00:28]} 8. Ne5 {[%emt 0:00:55]} Nfd7 {[%emt 0:00:07]} 9. e4 {[%emt 0:02:18]} Nxe5 {[%emt 0:12:10]} 10. exf5 {[%emt 0:00:14]} Ned7 {[%emt 0:00:01]} 11. a5 {[%emt 0:00:27]} Nc8 {[%emt 0:00:09]} 12. a6 {[%emt 0:06:49]} bxa6 {[%emt 0:00:25]} 13. Bxa6 {[%emt 0:00:54]} Nd6 {[%emt 0:01:04]} 14. Qf3 {[%emt 0:21:10]} Qb6 {[%emt 0:03:58]} 15. O-O {[%emt 0:04:21]} g6 {[%emt 0:05:33]} 16. Bf4 {[%emt 0:05:53]} Nxf5 {[%emt 0:05:03]} 17. Nb5 {[%emt 0:08:31]} e5 {[%emt 0:05:01]} 18. Rfc1 {[%emt 0:10:41]} Nxd4 {[%emt 0:05:41]} 19. Nxd4 {[%emt 0:03:30]} Qxd4 {[%emt 0:07:39]} 20. Qxc6 {[%emt 0:01:44]} Rd8 {[%emt 0:00:05]} 21. Bxe5 {[%emt 0:03:23]} 1-0

[Event "Magistral Osasco 60 Anos 2022"]
[Site "Sao Paolo"]
[Date "2022.02.19"]
[Round "1.3"]
[White "Pereira, Silvio Cunha"]
[Black "Quintiliano Pinto, Renato R."]
[Result "1/2-1/2"]
[ECO "B53"]
[WhiteElo "2217"]
[BlackElo "2468"]
[Annotator "ChessBase"]
[PlyCount "83"]
[EventDate "2022.02.19"]
[EventType "tourn"]
[EventCountry "BRA"]
[SourceTitle "playchess.com"]
[Source "ChessBase"]
[SourceQuality "1"]
[TimeControl "40/5400+30:1800+30"]

1. e4 {[%emt 0:00:11]} c5 {[%emt 0:00:14]} 2. Nf3 {[%emt 0:00:07]} d6 {[%emt 0:00:09]} 3. d4 {[%emt 0:00:06]} cxd4 {[%emt 0:00:05]} 4. Qxd4 {[%emt 0:00:06]} Nc6 {[%emt 0:00:13]} 5. Bb5 {[%emt 0:03:19]} Bd7 {[%emt 0:00:26]} 6. Bxc6 {[%emt 0:00:15]} Bxc6 {[%emt 0:00:04]} 7. c4 {[%emt 0:00:07]} f5 {[%emt 0:01:01]} 8. exf5 {[%emt 0:01:45]} Qa5+ {[%emt 0:00:09]} 9. Nbd2 {[%emt 0:00:10]} Qxf5 {[%emt 0:00:09]} 10. Qe3 {[%emt 0:01:01]} e5 {[%emt 0:06:22]} 11. O-O {[%emt 0:03:37]} Be7 {[%emt 0:00:45]} 12. c5 {[%emt 0:04:00]} O-O-O {[%emt 0:05:06]} 13. cxd6 {[%emt 0:02:24]} Bxd6 {[%emt 0:00:10]} 14. Nc4 {[%emt 0:01:06]} Bxf3 {[%emt 0:03:23]} 15. Qxf3 {[%emt 0:06:13]} Qxf3 {[%emt 0:04:52]} 16. gxf3 {[%emt 0:04:58]} Bc7 {[%emt 0:18:40]} 17. Bg5 {[%emt 0:00:41]} Nf6 {[%emt 0:01:52]} 18. Rac1 {[%emt 0:00:28]} Kb8 {[%emt 0:03:36]} 19. Rfd1 {[%emt 0:03:21]} Rhe8 {[%emt 0:16:48]} 20. h3 {[%emt 0:09:15]} Rxd1+ {[%emt 0:10:01]} 21. Rxd1 {[%emt 0:00:30]} Nh5 22. Nd2 {[%emt 0:00:30]} h6 {[%emt 0:01:00]} 23. Be3 {[%emt 0:00:30]} Rd8 {[%emt 0:00:30]} 24. Kg2 {[%emt 0:00:30]} Rd6 {[%emt 0:00:30]} 25. Rc1 {[%emt 0:00:30]} Nf6 {[%emt 0:00:30]} 26. Kf1 {[%emt 0:00:30]} Nd5 {[%emt 0:00:30]} 27. Ke2 {[%emt 0:00:30]} b6 {[%emt 0:00:30]} 28. Ne4 {[%emt 0:00:30]} Rd7 {[%emt 0:00:30]} 29. a3 {[%emt 0:00:30]} Kc8 {[%emt 0:00:30]} 30. Nc3 {[%emt 0:00:30]} Nxc3+ {[%emt 0:00:30]} 31. Rxc3 {[%emt 0:00:30]} Rf7 {[%emt 0:00:30]} 32. Rc6 {[%emt 0:00:30]} Kd7 {[%emt 0:00:30]} 33. Rg6 {[%emt 0:00:30]} Bd8 {[%emt 0:00:30]} 34. Kd3 {[%emt 0:00:30]} Bf6 {[%emt 0:00:30]} 35. Ke4 {[%emt 0:00:30]} Ke6 {[%emt 0:00:30]} 36. Rg1 {[%emt 0:00:30]} Rc7 {[%emt 0:00:30]} 37. Rc1 {[%emt 0:00:30]} Rxc1 {[%emt 0:00:30]} 38. Bxc1 {[%emt 0:00:30]} b5 {[%emt 0:00:30]} 39. b3 {[%emt 0:00:30]} Bh4 {[%emt 0:00:30]} 40. Be3 {[%emt 0:00:30]} a6 {[%emt 0:00:30]} 41. Bc5 {[%emt 0:30:30]} g6 {[%emt 0:30:30]} 42. a4 {[%emt 0:00:30]} 1/2-1/2

[Event "Magistral Osasco 60 Anos 2022"]
[Site "Sao Paolo"]
[Date "2022.02.19"]
[Round "1.5"]
[White "Pereira, Silvio Cunha"]
[Black "Quintiliano Pinto, Renato R."]
[Result "*"]
[ECO "E90"]
[WhiteElo "2217"]
[BlackElo "2468"]
[Annotator "ChessBase"]
[PlyCount "25"]
[EventDate "2022.02.19"]
[EventType "tourn"]
[EventCountry "BRA"]
[SourceTitle "playchess.com"]
[Source "ChessBase"]
[SourceQuality "1"]
[TimeControl "40/5400+30:1800+30"]

1. d4 {[%emt 0:00:08]} Nf6 {[%emt 0:00:05]} 2. c4 {[%emt 0:00:12]} g6 {[%emt 0:00:07]} 3. Nc3 {[%emt 0:00:10]} Bg7 {[%emt 0:00:01]} 4. e4 {[%emt 0:00:12]} d6 {[%emt 0:00:01]} 5. Nf3 {[%emt 0:00:13]} O-O {[%emt 0:00:03]} 6. Bd3 {[%emt 0:00:08]} Bg4 {[%emt 0:02:17]} 7. Be2 {[%emt 0:00:14]} Nc6 {[%emt 0:05:14]} 8. d5 {[%emt 0:00:37]} Bxf3 {[%emt 0:00:19]} 9. Bxf3 {[%emt 0:00:10]} Na5 {[%emt 0:01:32]} 10. Be2 {[%emt 0:00:30]} Nd7 {[%emt 0:01:32]} 11. Be3 {[%emt 0:01:33]} Nb6 {[%emt 0:02:09]} 12. Bd4 {[%emt 0:02:03]} Bxd4 {[%emt 0:02:17]} 13. Qxd4 {[%emt 0:00:21]} *

[Event "Magistral Osasco 60 Anos 2022"]
[Site "Sao Paolo"]
[Date "2022.02.24"]
[Round "6.2"]
[White "Cubas, Jose Fernando"]
[Black "Languidey, Simon Alejandro"]
[Result "0-1"]
[ECO "C47"]
[WhiteElo "2469"]
[BlackElo "2403"]
[Annotator "RC"]
[PlyCount "54"]
[EventDate "2022.02.19"]
[EventType "tourn"]
[EventCountry "BRA"]
[SourceTitle "playchess.com"]
[Source "ChessBase"]
[SourceQuality "1"]
[TimeControl "40/5400+30:1800+30"]

1. e4 {[%emt 0:00:14]} e5 {[%emt 0:00:37]} 2. Nf3 {[%emt 0:02:42]} Nc6 {[%emt 0:00:17]} 3. d4 {[%emt 0:00:11]} exd4 {[%emt 0:01:11]} 4. Nxd4 {[%emt 0:00:04]} Nf6 {[%emt 0:01:08]} 5. Nc3 {[%emt 0:01:24]} Bb4 {[%emt 0:00:57]} 6. Nxc6 {[%emt 0:00:07]} bxc6 {[%emt 0:00:57]} 7. Bd3 {[%emt 0:00:05]} d5 {[%emt 0:05:40]} 8. exd5 {[%emt 0:00:07]} O-O {[%emt 0:02:17]} 9. O-O {[%emt 0:00:06]} Bg4 {[%emt 0:02:52]} 10. Ne2 {[%emt 0:12:42]} cxd5 {[%emt 0:01:09]} 11. c3 {[%emt 0:02:36]} Bd6 {[%emt 0:04:10]} 12. Qc2 {[%emt 0:05:51]} h6 {[%emt 0:06:32]} 13. Ng3 {[%emt 0:02:33]} Re8 {[%emt 0:08:58]} 14. Bd2 {[%emt 0:17:38]} c5 {[%emt 0:05:17]} 15. c4 {[%emt 0:07:09]} d4 {[%emt 0:01:27]} 16. Nf5 {[%emt 0:08:47]} Bxf5 {[%emt 0:03:47]} 17. Bxf5 {[%emt 0:01:21]} Qc7 {[%emt 0:00:11]} 18. g3 {[%emt 0:01:26]} Qc6 {[%emt 0:03:16]} 19. Rfe1 {[%emt 0:04:01]} Bc7 {[%emt 0:05:07]} 20. Rxe8+ {[%emt 0:10:52]} Rxe8 {[%emt 0:00:45]} 21. Re1 {[%emt 0:00:22]} Rxe1+ {[%emt 0:03:22]} 22. Bxe1 {[%emt 0:00:09]} Qe8 {[%emt 0:00:29]} 23. Bd2 {[%emt 0:00:23]} Qc6 {[%emt 0:41:34]} 24. b4 {[%emt 0:06:00]} cxb4 {[%emt 0:00:00]} 25. Bxb4 {[%emt 0:00:04]} Nd7 {[%emt 0:00:00]} 26. Qe2 {[%emt 0:04:22]} Ne5 {[%emt 0:00:00]} 27. Qe4 {[%emt 0:05:10]} g6 {[%emt 0:00:00]} 0-1

[Event "Magistral Osasco 60 Anos 2022"]
[Site "Sao Paolo"]
[Date "2022.02.24"]
[Round "6.3"]
[White "Rodi, Luis Ernesto"]
[Black "Quintiliano Pinto, Renato R."]
[Result "0-1"]
[ECO "B23"]
[WhiteElo "2347"]
[BlackElo "2468"]
[Annotator "RC"]
[PlyCount "64"]
[EventDate "2022.02.19"]
[EventType "tourn"]
[EventCountry "BRA"]
[SourceTitle "playchess.com"]
[Source "ChessBase"]
[SourceQuality "1"]
[TimeControl "40/5400+30:1800+30"]

1. e4 {[%emt 0:00:03]} c5 {[%emt 0:01:39]} 2. Nc3 {[%emt 0:00:15]} d6 {[%emt 0:00:18]} 3. d4 {[%emt 0:00:08]} cxd4 {[%emt 0:00:08]} 4. Qxd4 {[%emt 0:00:06]} Nc6 {[%emt 0:00:06]} 5. Qd2 {[%emt 0:00:06]} g6 {[%emt 0:00:52]} 6. b3 {[%emt 0:00:07]} Bh6 {[%emt 0:00:11]} 7. f4 {[%emt 0:00:06]} Nf6 {[%emt 0:00:33]} 8. Bb2 {[%emt 0:00:08]} O-O {[%emt 0:01:50]} 9. O-O-O {[%emt 0:00:09]} e5 {[%emt 0:00:39]} 10. g3 {[%emt 0:00:35]} Re8 {[%emt 0:02:30]} 11. Kb1 {[%emt 0:00:18]} Nd4 {[%emt 0:06:17]} 12. Nge2 {[%emt 0:00:18]} Bg4 {[%emt 0:02:45]} 13. Bg2 {[%emt 0:00:08]} Nxe2 {[%emt 0:23:21]} 14. Nxe2 {[%emt 0:01:06]} Nh5 {[%emt 0:05:43]} 15. Rdf1 {[%emt 0:12:51]} Bxe2 {[%emt 0:14:44]} 16. Qxe2 {[%emt 0:00:23]} exf4 {[%emt 0:00:08]} 17. Bf3 {[%emt 0:04:37]} Ng7 {[%emt 0:01:04]} 18. Qd2 {[%emt 0:12:31]} Ne6 {[%emt 0:10:29]} 19. h4 {[%emt 0:01:07]} Bg7 {[%emt 0:01:17]} 20. Bxg7 {[%emt 0:01:15]} Kxg7 {[%emt 0:01:02]} 21. gxf4 {[%emt 0:01:20]} Qf6 {[%emt 0:01:24]} 22. f5 {[%emt 0:01:29]} Nd4 {[%emt 0:05:32]} 23. fxg6 {[%emt 0:03:52]} Nb5 {[%emt 0:08:39]} 24. Qe3 {[%emt 0:01:27]} hxg6 {[%emt 0:05:37]} 25. Bd1 {[%emt 0:18:59]} Qe5 {[%emt 0:01:39]} 26. Rf3 {[%emt 0:21:46]} Rac8 {[%emt 0:00:30]} 27. Rhf1 {[%emt 0:00:19]} Re7 {[%emt 0:00:58]} 28. Qf2 {[%emt 0:08:14]} Nc3+ {[%emt 0:02:05]} 29. Kc1 {[%emt 0:00:15]} Nxe4 {[%emt 0:00:16]} 30. Rxf7+ {[%emt 0:00:07]} Rxf7 {[%emt 0:00:08]} 31. Qxf7+ {[%emt 0:00:10]} Kh8 {[%emt 0:00:03]} 32. c4 {[%emt 0:01:36]} Qa1+ {[%emt 0:04:03]} 0-1

[Event "Magistral Osasco 60 Anos 2022"]
[Site "Sao Paolo"]
[Date "2022.02.24"]
[Round "6.4"]
[White "Di Berardino, Diego Rafael"]
[Black "Pereira, Silvio Cunha"]
[Result "1/2-1/2"]
[ECO "C54"]
[WhiteElo "2483"]
[BlackElo "2217"]
[Annotator "ChessBase"]
[PlyCount "134"]
[EventDate "2022.02.19"]
[EventType "tourn"]
[EventCountry "BRA"]
[SourceTitle "playchess.com"]
[Source "ChessBase"]
[SourceQuality "1"]
[TimeControl "40/5400+30:1800+30"]

1. e4 {[%emt 0:01:35]} e5 {[%emt 0:00:07]} 2. Nf3 {[%emt 0:00:08]} Nc6 {[%emt 0:00:06]} 3. Bc4 {[%emt 0:00:12]} Bc5 {[%emt 0:00:07]} 4. c3 {[%emt 0:00:23]} Nf6 {[%emt 0:00:44]} 5. d4 {[%emt 0:00:51]} exd4 {[%emt 0:00:12]} 6. e5 {[%emt 0:00:10]} d5 {[%emt 0:00:24]} 7. Be2 {[%emt 0:01:07]} Ne4 {[%emt 0:00:56]} 8. cxd4 {[%emt 0:00:04]} Bb4+ {[%emt 0:01:16]} 9. Bd2 {[%emt 0:01:23]} Bxd2+ {[%emt 0:03:43]} 10. Nbxd2 {[%emt 0:00:05]} O-O {[%emt 0:00:24]} 11. O-O {[%emt 0:02:28]} f6 {[%emt 0:01:25]} 12. Bb5 {[%emt 0:05:26]} Ne7 {[%emt 0:07:07]} 13. exf6 {[%emt 0:06:42]} gxf6 {[%emt 0:00:46]} 14. Re1 {[%emt 0:01:31]} Nd6 {[%emt 0:00:51]} 15. Bd3 {[%emt 0:01:31]} Bf5 {[%emt 0:04:06]} 16. Bxf5 {[%emt 0:29:14]} Nexf5 {[%emt 0:02:23]} 17. Qb3 {[%emt 0:10:32]} c6 {[%emt 0:00:23]} 18. Ne4 {[%emt 0:01:22]} Qb6 {[%emt 0:15:11]} 19. Nc5 {[%emt 0:02:09]} Qxb3 {[%emt 0:02:06]} 20. Nxb3 {[%emt 0:00:38]} Kf7 {[%emt 0:01:19]} 21. Nc5 {[%emt 0:02:01]} Rfe8 {[%emt 0:01:17]} 22. Kf1 {[%emt 0:00:15]} b6 {[%emt 0:03:01]} 23. Na6 {[%emt 0:05:23]} Re4 {[%emt 0:02:37]} 24. Rac1 {[%emt 0:01:44]} Rc8 {[%emt 0:00:57]} 25. a4 {[%emt 0:01:50]} Rxe1+ {[%emt 0:10:30]} 26. Kxe1 {[%emt 0:01:26]} h5 {[%emt 0:03:15]} 27. Ke2 {[%emt 0:03:16]} Ke6 {[%emt 0:01:08]} 28. Kd3 {[%emt 0:00:24]} Ne4 {[%emt 0:02:45]} 29. Ke2 {[%emt 0:03:41]} Kd6 {[%emt 0:01:22]} 30. Nb4 {[%emt 0:02:06]} a5 {[%emt 0:02:57]} 31. Nd3 {[%emt 0:05:18]} Ng5 {[%emt 0:10:23]} 32. Nde1 {[%emt 0:00:58]} Re8+ {[%emt 0:01:17]} 33. Kd3 {[%emt 0:03:35]} Ne4 {[%emt 0:00:50]} 34. Rc2 {[%emt 0:00:28]} c5 {[%emt 0:01:11]} 35. Re2 {[%emt 0:01:17]} cxd4 {[%emt 0:02:01]} 36. Nxd4 {[%emt 0:02:51]} Nc5+ {[%emt 0:00:47]} 37. Kd2 {[%emt 0:00:05]} Rxe2+ {[%emt 0:00:20]} 38. Nxe2 {[%emt 0:00:03]} Ne4+ {[%emt 0:00:52]} 39. Kc2 {[%emt 0:01:08]} Nxf2 {[%emt 0:00:18]} 40. Nf4 {[%emt 0:00:00]} h4 {[%emt 0:00:00]} 41. Nf3 {[%emt 0:00:46]} Ng4 {[%emt 0:05:45]} 42. Kc3 {[%emt 0:03:54]} Ne5 {[%emt 0:03:02]} 43. Nd4 {[%emt 0:00:22]} Nxd4 {[%emt 0:01:44]} 44. Kxd4 {[%emt 0:00:03]} Nc6+ {[%emt 0:00:20]} 45. Kc3 {[%emt 0:02:54]} Ne7 {[%emt 0:01:06]} 46. Kd4 {[%emt 0:00:39]} Nf5+ {[%emt 0:02:42]} 47. Kd3 {[%emt 0:00:21]} Ne7 {[%emt 0:03:32]} 48. Kd4 {[%emt 0:00:20]} Nc6+ {[%emt 0:00:46]} 49. Kc3 {[%emt 0:01:20]} d4+ {[%emt 0:07:28]} 50. Kc4 {[%emt 0:15:15]} Ke5 {[%emt 0:08:54]} 51. Ng6+ {[%emt 0:02:20]} Ke4 {[%emt 0:00:05]} 52. Nxh4 {[%emt 0:00:02]} Ne5+ {[%emt 0:00:11]} 53. Kb3 {[%emt 0:00:03]} Kf4 {[%emt 0:00:15]} 54. Kc2 {[%emt 0:02:03]} Kg4 {[%emt 0:01:43]} 55. g3 {[%emt 0:00:05]} Kh3 {[%emt 0:00:41]} 56. b3 {[%emt 0:03:47]} Kxh2 {[%emt 0:00:40]} 57. Nf5 {[%emt 0:00:02]} Kh3 {[%emt 0:03:43]} 58. Nxd4 {[%emt 0:03:51]} Kxg3 {[%emt 0:00:07]} 59. Kc3 {[%emt 0:00:05]} Kg4 {[%emt 0:08:35]} 60. b4 {[%emt 0:02:07]} f5 {[%emt 0:01:16]} 61. bxa5 {[%emt 0:00:18]} bxa5 {[%emt 0:00:07]} 62. Ne6 {[%emt 0:01:48]} f4 {[%emt 0:01:31]} 63. Nxf4 {[%emt 0:00:54]} Kxf4 {[%emt 0:00:06]} 64. Kd4 {[%emt 0:00:02]} Nd7 {[%emt 0:01:28]} 65. Kc4 {[%emt 0:00:25]} Nb6+ {[%emt 0:00:24]} 66. Kb5 {[%emt 0:00:06]} Nxa4 {[%emt 0:00:06]} 67. Kxa5 {[%emt 0:00:05]} Ke5 {[%emt 0:06:19]} 1/2-1/2

[Event "Magistral Osasco 60 Anos 2022"]
[Site "Sao Paolo"]
[Date "2022.02.26"]
[Round "8.5"]
[White "Alboredo, Julia"]
[Black "Pereira, Silvio Cunha"]
[Result "1-0"]
[ECO "C53"]
[WhiteElo "2216"]
[BlackElo "2217"]
[Annotator "ChessBase"]
[PlyCount "57"]
[EventDate "2022.02.19"]
[EventType "tourn"]
[EventCountry "BRA"]
[SourceTitle "playchess.com"]
[Source "ChessBase"]
[SourceQuality "1"]
[TimeControl "40/5400+30:1800+30"]

1. e4 {[%emt 0:00:06]} e5 {[%emt 0:00:05]} 2. Nf3 {[%emt 0:00:13]} Nc6 {[%emt 0:00:05]} 3. Bc4 {[%emt 0:00:22]} Bc5 {[%emt 0:00:06]} 4. c3 {[%emt 0:00:18]} Bb6 {[%emt 0:01:19]} 5. d4 {[%emt 0:00:31]} Qe7 {[%emt 0:00:06]} 6. Bg5 {[%emt 0:00:26]} Nf6 {[%emt 0:00:20]} 7. d5 {[%emt 0:00:23]} Nd8 {[%emt 0:00:05]} 8. d6 {[%emt 0:00:17]} cxd6 {[%emt 0:00:06]} 9. Na3 {[%emt 0:00:44]} a6 {[%emt 0:01:11]} 10. O-O {[%emt 0:02:07]} Ne6 {[%emt 0:00:36]} 11. Bxf6 {[%emt 0:02:12]} Qxf6 {[%emt 0:00:06]} 12. g3 {[%emt 0:04:39]} h5 {[%emt 0:02:54]} 13. Nh4 {[%emt 0:15:06]} Ng5 {[%emt 0:14:51]} 14. Bd5 {[%emt 0:14:55]} Nh3+ {[%emt 0:09:20]} 15. Kg2 {[%emt 0:00:33]} Nf4+ {[%emt 0:09:00]} 16. Kh1 {[%emt 0:02:02]} Bd8 {[%emt 0:07:11]} 17. Nc4 {[%emt 0:03:36]} Nxd5 {[%emt 0:05:51]} 18. Qxd5 {[%emt 0:01:26]} Qe6 {[%emt 0:00:37]} 19. Nxd6+ {[%emt 0:13:03]} Kf8 {[%emt 0:01:34]} 20. Rad1 {[%emt 0:04:33]} Rh6 {[%emt 0:11:19]} 21. Nhf5 {[%emt 0:02:04]} Rf6 {[%emt 0:01:02]} 22. Qc5 {[%emt 0:04:20]} b6 {[%emt 0:01:15]} 23. Qe3 {[%emt 0:00:06]} Rg6 {[%emt 0:03:01]} 24. f4 {[%emt 0:01:36]} Kg8 {[%emt 0:03:42]} 25. Rd5 {[%emt 0:02:47]} exf4 {[%emt 0:03:25]} 26. gxf4 {[%emt 0:00:27]} Bc7 {[%emt 0:07:54]} 27. Rfd1 {[%emt 0:05:55]} f6 {[%emt 0:00:44]} 28. Rg1 {[%emt 0:01:08]} Rxg1+ {[%emt 0:00:55]} 29. Qxg1 {[%emt 0:00:09]} 1-0